fUST/lending_fUST_20251229
["ID","MTS","AMOUNT","RATE_DAILY","PERIOD"]
[399987641,1766980251289,-221.774447,0.00022,2]
[399987642,1766980251301,-264.968395,0.00022,2]
[399987643,1766980251313,-351.21589,0.00022,2]
[399987644,1766980251327,-264.968395,0.00022,2]
[399987645,1766980251338,-351.21589,0.00022,2]
[399987646,1766980251348,-264.968395,0.00022,2]
[399987647,1766980251359,-351.21589,0.00022,2]
[399987648,1766980251370,-351.21589,0.00022,2]
[399987649,1766980251380,-1697.70379371,0.00022085,2]
[399987650,1766980251391,-500.0,0.00022099,7]
[399987651,1766980251402,-9379.91,0.000221,2]
[399987652,1766980251412,-767.7842514,0.00022254,2]
[399987653,1766980251424,-213.90677365,0.00022263,17]
[399987654,1766980251434,-184.80545579,0.00022466,5]
[399987655,1766980251444,-1856.12,0.000225,14]
[399987656,1766980251455,-5000.0,0.00022679,2]
[399987657,1766980251466,-230.40382466,0.000227,3]
[399987658,1766980251477,-168.0,0.00022795,8]
[399987659,1766980251488,-796.19226871,0.00022802,2]
[399987660,1766980251498,-213.90677365,0.00022944,19]
[399987661,1766980251509,-5052.89879708,0.00022997,2]
[399987662,1766980251520,-73670.23831608,0.00022998,2]
[399987663,1766980251531,-151.0,0.00022998,2]
[399987664,1766980251541,-151.0,0.00022998,2]
[399987665,1766980251552,-155.032947,0.00022998,2]
[399987666,1766980251562,-151.0,0.00022998,2]
[399987667,1766980251769,-151.0,0.00022998,2]
[399987668,1766980251785,-231.238271,0.00022998,2]
[399987669,1766980251797,-156.362862,0.00022998,2]
[399987670,1766980251806,-151.0,0.00022998,2]
[399987671,1766980251815,-151.0,0.00022998,2]
[399987672,1766980251824,-238.888718,0.00022998,2]
[399987673,1766980251834,-503.96888,0.00022998,2]
[399987674,1766980251843,-503.96888,0.00022998,2]
[399987675,1766980251852,-503.96888,0.00022998,2]
[399987676,1766980251861,-503.96888,0.00022998,2]
[399987677,1766980251870,-545.654718,0.00022998,2]
[399987678,1766980251879,-545.654718,0.00022998,2]
[399987679,1766980251888,-545.654718,0.00022998,2]
[399987680,1766980251898,-545.654718,0.00022998,2]
[399987681,1766980251907,-151.0,0.00022998,2]
[399987682,1766980251916,-151.0,0.00022998,2]
[399987683,1766980251925,-151.0,0.00022998,2]
[399987684,1766980251934,-151.0,0.00022998,2]
[399987685,1766980251944,-151.0,0.00022998,2]
[399987686,1766980251954,-619.905457,0.00022998,2]
[399987687,1766980251964,-151.0,0.00022998,2]
[399987688,1766980251976,-619.905457,0.00022998,2]
[399987689,1766980251986,-619.905457,0.00022998,2]
[399987690,1766980251995,-619.905457,0.00022998,2]
[399987691,1766980252004,-151.0,0.00022998,2]
[399987692,1766980252015,-180.593818,0.00022998,2]
[399987693,1766980252026,-151.0,0.00022998,2]
[399987694,1766980252036,-206.328228,0.00022998,2]
[399987695,1766980252046,-151.0,0.00022998,2]
[399987696,1766980252059,-151.0,0.00022998,2]
[399987697,1766980252068,-186.176167,0.00022998,2]
[399987698,1766980252078,-151.0,0.00022998,2]
[399987699,1766980252087,-151.0,0.00022998,2]
[399987700,1766980252096,-186.176167,0.00022998,2]
[399987701,1766980252105,-151.0,0.00022998,2]
[399987702,1766980252115,-186.176167,0.00022998,2]
[399987703,1766980252125,-186.176167,0.00022998,2]
[399987704,1766980252134,-151.0,0.00022998,2]
[399987705,1766980252143,-317.846058,0.00022998,2]
[399987706,1766980252152,-317.846058,0.00022998,2]
[399987707,1766980252161,-317.846058,0.00022998,2]
[399987708,1766980252171,-317.846058,0.00022998,2]
[399987709,1766980252180,-151.0,0.00022998,2]
[399987710,1766980252190,-151.0,0.00022998,2]
[399987711,1766980252200,-163.04457,0.00022998,2]
[399987712,1766980252209,-163.04457,0.00022998,2]
[399987713,1766980252218,-163.04457,0.00022998,2]
[399987714,1766980252227,-163.04457,0.00022998,2]
[399987715,1766980252238,-298.599635,0.00022998,2]
[399987716,1766980252250,-151.0,0.00022998,2]
[399987717,1766980252259,-154.874734,0.00022998,2]
[399987718,1766980252269,-151.0,0.00022998,2]
[399987719,1766980252278,-191.454773,0.00022998,2]
[399987720,1766980252287,-191.454773,0.00022998,2]
[399987721,1766980252296,-191.454773,0.00022998,2]
[399987722,1766980252305,-191.454773,0.00022998,2]
[399987723,1766980252314,-264.968395,0.00022998,2]
[399987724,1766980252323,-264.968395,0.00022998,2]
[399987725,1766980252333,-351.21589,0.00022998,2]
[399987726,1766980252341,-264.968395,0.00022998,2]
[399987727,1766980252351,-351.21589,0.00022998,2]
[399987728,1766980252360,-264.968395,0.00022998,2]
[399987729,1766980252369,-351.21589,0.00022998,2]
[399987730,1766980252378,-351.21589,0.00022998,2]
[399987731,1766980252392,-5000.0,0.00023,14]
[399987732,1766980252402,-151.0,0.00023,7]
[399987733,1766980252414,-166.0,0.00023014,7]
[399987734,1766980252424,-627.0,0.00023071,2]
[399987735,1766980252436,-225.752,0.00023071,2]
[399987736,1766980252447,-2156.0,0.00023071,2]
[399987737,1766980252456,-1628.82,0.000231,7]
[399987738,1766980252466,-600.0,0.00023176,2]
[399987739,1766980252477,-500.0,0.00023195,2]
[399987740,1766980252487,-2000.0,0.00023225,7]
[399987741,1766980252496,-500.0,0.00023253,2]
[399987742,1766980252506,-800.0,0.00023262,2]
[399987743,1766980252515,-800.0,0.00023265,2]
[399987744,1766980252524,-316.40380426,0.00023273,2]
[399987745,1766980252534,-9379.91,0.000233,2]
[399987746,1766980252545,-825.65138265,0.0002335,2]
[399987747,1766980252557,-601.21887396,0.00023418,2]
[399987748,1766980252567,-800.0,0.0002345,2]
[399987749,1766980252577,-958.75811848,0.00023481,2]
[399987750,1766980252587,-5033.0,0.000235,30]
[399987751,1766980252596,-800.0,0.0002355,2]
[399987752,1766980252606,-800.0,0.00023565,2]
[399987753,1766980252615,-213.90677365,0.00023624,20]
[399987754,1766980252625,-800.0,0.00023696,2]
[399987755,1766980252635,-800.0,0.00023729,2]
[399987756,1766980252644,-847.63459958,0.0002376,2]
[399987757,1766980252773,-60076.97507002,0.0002376,2]
[399987758,1766980252785,-771.99000221,0.0002376,2]
[399987759,1766980252824,-500.0,0.0001469,2]
[399987760,1766980252834,-500.0,0.00015121,2]
[399987761,1766980252844,-500.0,0.0001565,2]
[399987762,1766980252854,-500.0,0.00015939,2]
[399987763,1766980252865,-500.0,0.0001707,2]
[399987764,1766980252877,-44088.42359851,0.0002376,2]
[399987765,1766980252888,-800.0,0.00023821,2]
[399987766,1766980252898,-528.66254772,0.0002387,2]
[399987767,1766980252907,-1856.12,0.000239,14]
[399987768,1766980252917,-800.0,0.00023966,2]
[399987769,1766980252927,-5000.0,0.00024,30]
[399987770,1766980252937,-3936.91959595,0.00024,60]
[399987771,1766980252947,-1732.89722071,0.00024,2]
[399987772,1766980252960,-464.95458777,0.00024,2]
[399987773,1766980252969,-10787.12716928,0.00024,30]
[399987774,1766980252981,-1041.66666667,0.00024,7]
[399987775,1766980252995,-151.0,0.00024,2]
[399987776,1766980253005,-151.0,0.00024,2]
[399987777,1766980253014,-151.0,0.00024,2]
[399987778,1766980253023,-151.0,0.00024,2]
[399987779,1766980253035,-151.0,0.00024,9]
[399987780,1766980253045,-503.96888,0.00024,2]
[399987781,1766980253054,-503.96888,0.00024,2]
[399987782,1766980253065,-503.96888,0.00024,2]
[399987783,1766980253074,-503.96889,0.00024,2]
[399987784,1766980253084,-545.654718,0.00024,2]
[399987785,1766980253094,-545.654718,0.00024,2]
[399987786,1766980253103,-545.654718,0.00024,2]
[399987787,1766980253112,-545.654713,0.00024,2]
[399987788,1766980253122,-153.979212,0.00024,2]
[399987789,1766980253132,-249.08345827,0.00024,2]
[399987790,1766980253141,-151.0,0.00024,2]
[399987791,1766980253151,-151.0,0.00024,2]
[399987792,1766980253161,-151.0,0.00024,2]
[399987793,1766980253170,-619.905457,0.00024,2]
[399987794,1766980253180,-151.0,0.00024,2]
[399987795,1766980253190,-619.905457,0.00024,2]
[399987796,1766980253200,-619.905457,0.00024,2]
[399987797,1766980253209,-619.905465,0.00024,2]
[399987798,1766980253219,-151.0,0.00024,2]
[399987799,1766980253229,-151.0,0.00024,2]
[399987800,1766980253238,-151.0,0.00024,2]
[399987801,1766980253247,-151.0,0.00024,2]
[399987802,1766980253256,-186.176167,0.00024,2]
[399987803,1766980253266,-151.0,0.00024,2]
[399987804,1766980253276,-151.0,0.00024,2]
[399987805,1766980253285,-186.176167,0.00024,2]
[399987806,1766980253295,-151.0,0.00024,2]
[399987807,1766980253304,-186.176167,0.00024,2]
[399987808,1766980253313,-186.176166,0.00024,2]
[399987809,1766980253322,-151.0,0.00024,2]
[399987810,1766980253331,-317.846058,0.00024,2]
[399987811,1766980253341,-317.846058,0.00024,2]
[399987812,1766980253350,-317.846058,0.00024,2]
[399987813,1766980253359,-317.846062,0.00024,2]
[399987814,1766980253368,-151.0,0.00024,2]
[399987815,1766980253377,-300.039085,0.00024,2]
[399987816,1766980253386,-163.04457,0.00024,2]
[399987817,1766980253396,-163.04457,0.00024,2]
[399987818,1766980253405,-163.04457,0.00024,2]
[399987819,1766980253415,-163.04456,0.00024,2]
[399987820,1766980253424,-151.0,0.00024,2]
[399987821,1766980253434,-151.0,0.00024,2]
[399987822,1766980253443,-191.454773,0.00024,2]
[399987823,1766980253452,-191.454773,0.00024,2]
[399987824,1766980253462,-191.454773,0.00024,2]
[399987825,1766980253472,-191.45477,0.00024,2]
[399987826,1766980253482,-264.968395,0.00024,2]
[399987827,1766980253491,-264.968395,0.00024,2]
[399987828,1766980253501,-351.21589,0.00024,2]
[399987829,1766980253510,-264.968395,0.00024,2]
[399987830,1766980253519,-351.21589,0.00024,2]
[399987831,1766980253529,-264.968397,0.00024,2]
[399987832,1766980253538,-351.21589,0.00024,2]
[399987833,1766980253547,-351.215881,0.00024,2]
[399987834,1766980253559,-800.0,0.00024002,2]
[399987835,1766980253568,-165.0050275,0.00024042,2]
[399987836,1766980253577,-800.0,0.00024074,2]
[399987837,1766980253586,-255.6470212,0.00024085,7]
[399987838,1766980253596,-800.0,0.00024094,2]
[399987839,1766980253605,-1628.82,0.000241,7]
[399987840,1766980253614,-61798.44124825,0.00024142,2]
[399987841,1766980253626,-1331.17307,0.00024142,2]
[399987842,1766980253642,-295.13886484,0.00017999,2]
[399987882,1766980527458,150.0,9.145e-05,2]
[399987883,1766980528535,220.32,0.0001,2]
[399987885,1766980591448,150.0,9.155e-05,2]
[399988018,1766981432130,-365.43016535,0.00013273,2]
[399988194,1766981438326,-141.41877001,0.00013273,2]
[399988196,1766981438336,-608.0,0.00013273,2]
[399988198,1766981438346,-481.931262,0.00013699,2]
[399988200,1766981438357,-177.0,0.00015485,2]
[399988202,1766981438366,-587.6464875,0.00017234,2]
[399988204,1766981438377,-204.0,0.00017485,2]
[399988206,1766981438388,-298.945,0.00018015,2]
[399988208,1766981438397,-2156.0,0.00018015,2]
[399988210,1766981438406,-447.716,0.00018015,2]
[399988212,1766981438415,-416.0,0.00018015,2]
[399988214,1766981438425,-215.56718446,0.00018521,3]
[399988216,1766981438434,-704.1486818,0.00018729,2]
[399988218,1766981438443,-300.0,0.0001874,2]
[399988220,1766981438452,-300.0,0.0001874,2]
[399988222,1766981438462,-300.0,0.0001874,2]
[399988224,1766981438472,-300.0,0.0001874,2]
[399988226,1766981438481,-300.0,0.0001874,2]
[399988228,1766981438490,-300.0,0.0001874,2]
[399988230,1766981438499,-300.0,0.0001874,2]
[399988232,1766981438508,-300.0,0.0001874,2]
[399988234,1766981438520,-300.0,0.0001874,2]
[399988236,1766981438529,-300.0,0.0001874,2]
[399988238,1766981438538,-300.0,0.0001874,2]
[399988240,1766981438547,-300.0,0.0001874,2]
[399988242,1766981438557,-300.0,0.0001874,2]
[399988244,1766981438566,-300.0,0.0001874,2]
[399988246,1766981438576,-300.0,0.0001874,2]
[399988248,1766981438585,-303.06060909,0.000189,2]
[399988250,1766981438595,-302.45503289,0.00019089,2]
[399988252,1766981438604,-600.0,0.00019114,2]
[399988254,1766981438613,-461.67526834,0.00019433,2]
[399988256,1766981438623,-1441.92053886,0.00019445,2]
[399988258,1766981438635,-8558.07946114,0.00019445,2]
[399988260,1766981438644,-231.0,0.00019485,2]
[399988262,1766981438654,-478.75725327,0.00019981,2]
[399988264,1766981438663,-481.931262,0.00020187,2]
[399988266,1766981438673,-496.47127164,0.00020529,2]
[399988268,1766981438683,-500.0,0.00020614,2]
[399988270,1766981438691,-2429.05553978,0.00020983,2]
[399988272,1766981438701,-150.0,0.00021,2]
[399988274,1766981438710,-238.40220879,0.00021013,2]
[399988276,1766981438719,-500.0,0.00021013,2]
[399988278,1766981438729,-500.0,0.00021013,2]
[399988280,1766981438739,-446.30181524,0.00021013,2]
[399988282,1766981438748,-592.87395684,0.00021013,2]
[399988284,1766981438757,-500.0,0.00021013,2]
[399988286,1766981438767,-500.0,0.00021013,2]
[399988288,1766981438776,-500.0,0.00021013,2]
[399988290,1766981438786,-500.0,0.00021013,2]
[399988292,1766981438796,-405.55792081,0.00021013,2]
[399988294,1766981438805,-500.0,0.00021013,2]
[399988296,1766981438816,-500.0,0.00021013,2]
[399988298,1766981438825,-500.0,0.00021013,2]
[399988300,1766981438835,-500.0,0.00021013,2]
[399988302,1766981438845,-215.03923261,0.00021013,2]
[399988304,1766981438855,-500.0,0.00021013,2]
[399988306,1766981438864,-2156.0,0.00021015,2]
[399988308,1766981438874,-416.0,0.00021015,2]
[399988310,1766981438884,-720.0,0.00021025,2]
[399988312,1766981438894,-514.84070869,0.00021077,2]
[399988314,1766981438903,-185.216,0.00021112,2]
[399988316,1766981438919,-572.17923104,0.0002113,2]
[399988318,1766981438929,-1041.66666667,0.00021171,2]
[399988320,1766981438940,-2429.05553978,0.0002122,2]
[399988335,1766981439095,-170.0,0.0002126,4]
[399988336,1766981439193,-258.0,0.00021485,2]
[399988337,1766981439203,-533.88981491,0.00021625,2]
[399988338,1766981439214,-2429.05553978,0.00021643,2]
[399988339,1766981439223,-2429.05553978,0.00021645,2]
[399988340,1766981439233,-394.92,0.00021852,3]
[399988341,1766981439243,-564.24798062,0.00022,2]
[399988342,1766981439252,-160.0,0.0002203,3]
[399988343,1766981439262,-2429.05553978,0.00022109,2]
[399988344,1766981439273,-690.31,0.00022142,10]
[399988345,1766981439283,-500.0,0.00022151,2]
[399988346,1766981439293,-162.92929363,0.00022151,2]
[399988347,1766981439305,-28652.72103076,0.00022152,2]
[399988389,1766981440671,-430.55025904,0.00022152,2]
[399988403,1766981444700,-2274.42073784,0.00022152,2]
[399988404,1766981444716,-18340.16769847,0.00022152,2]
[399988405,1766981444727,-310.63394214,0.00022152,2]
[399988406,1766981444739,-27678.31712891,0.00022152,2]
[399988445,1766981446299,-652.19202469,0.00022152,2]
[399988446,1766981446315,-4945.28912518,0.00022152,2]
[399988447,1766981446459,-490.609,0.00022152,2]
[399988448,1766981446470,-297.24253298,0.00022152,2]
[399988466,1766982146267,185.0,0.00020885,120]
[399988467,1766982306888,3186.31,0.00028767,120]
[399988474,1766982428298,150.0,6.841e-05,2]
[399988475,1766982428693,150.0,7.151e-05,2]
[399988477,1766982494464,150.0,6.512e-05,2]
[399988478,1766982496361,150.0,8.063e-05,2]
[399988479,1766982497093,166.42,8.683e-05,2]
[399988480,1766982497546,187.22,8.993e-05,2]
[399988481,1766982497961,208.03,9.303e-05,2]
[399988485,1766982627511,150.0,8.234e-05,2]
[399988486,1766982628654,150.0,9.41e-05,2]
[399988543,1766982632359,-300.0,0.00013272,2]
[399988546,1766982632368,-608.0,0.00013272,2]
[399988549,1766982632377,-500.0,0.00013273,2]
[399988552,1766982632386,-500.0,0.00013273,2]
[399988555,1766982632395,-500.0,0.00013273,2]
[399988558,1766982632404,-500.0,0.00013273,2]
[399988560,1766982632414,-500.0,0.00013273,2]
[399988562,1766982632423,-500.0,0.00013273,2]
[399988564,1766982632432,-500.0,0.00013273,2]
[399988566,1766982632441,-500.0,0.00013273,2]
[399988568,1766982632450,-500.0,0.00013273,2]
[399988570,1766982632459,-417.52324936,0.00013273,2]
[399988572,1766982632468,-500.0,0.00013273,2]
[399988574,1766982632477,-500.0,0.00013273,2]
[399988576,1766982632486,-300.0,0.00013673,2]
[399988578,1766982632495,-500.0,0.00013698,2]
[399988579,1766982632504,-166.88154616,0.00013698,2]
[399988581,1766982632513,-235.87242967,0.00013698,2]
[399988583,1766982632522,-500.0,0.00013698,2]
[399988585,1766982632531,-500.0,0.00013699,2]
[399988587,1766982632540,-500.0,0.00013699,2]
[399988589,1766982632551,-500.0,0.00013699,2]
[399988591,1766982632560,-500.0,0.00013699,2]
[399988593,1766982632569,-500.0,0.00013699,2]
[399988595,1766982632578,-199.17509782,0.00013699,2]
[399988597,1766982632587,-500.0,0.00013699,2]
[399988599,1766982632597,-500.0,0.00013699,2]
[399988601,1766982632606,-500.0,0.00013699,2]
[399988603,1766982632615,-500.85105437,0.00013699,2]
[399988605,1766982632626,-500.0,0.00013699,2]
[399988606,1766982632635,-500.0,0.00013699,2]
[399988609,1766982632649,-500.0,0.00013699,2]
[399988610,1766982632658,-500.0,0.00013699,2]
[399988612,1766982632667,-500.0,0.00013699,2]
[399988614,1766982632676,-500.0,0.00013699,2]
[399988617,1766982632687,-500.0,0.00013699,2]
[399988619,1766982632696,-500.0,0.00013699,2]
[399988620,1766982632705,-500.0,0.00013699,2]
[399988622,1766982632714,-304.85599769,0.00013699,2]
[399988625,1766982632729,-195.14400231,0.00013699,2]
[399988627,1766982632738,-277.52543131,0.00013699,2]
[399988629,1766982632747,-500.0,0.00013699,2]
[399988631,1766982632755,-1125.91855317,0.00013716,2]
[399988633,1766982632764,-939.96041097,0.00013821,2]
[399988721,1766982638523,-500.0,0.00013693,2]
[399988722,1766982638532,-45.178,0.00013693,2]
[399988723,1766982638543,-454.822,0.00013693,2]
[399988724,1766982638552,-500.0,0.00013693,2]
[399988725,1766982638562,-500.0,0.00013693,2]
[399988726,1766982638571,-500.0,0.00013693,2]
[399988727,1766982638580,-211.82690447,0.00013693,2]
[399988728,1766982638590,-500.0,0.00013693,2]
[399988729,1766982638599,-600.07268419,0.00013693,2]
[399988731,1766982638608,-500.0,0.00013693,2]
[399988733,1766982638617,-163.26904886,0.00013693,2]
[399988734,1766982638626,-500.0,0.00013693,2]
[399988736,1766982638646,-500.0,0.00013693,2]
[399988737,1766982638657,-567.97944844,0.00013693,2]
[399988738,1766982638666,-500.0,0.00013693,2]
[399988739,1766982638676,-500.0,0.00013693,2]
[399988740,1766982638687,-500.0,0.00013693,2]
[399988741,1766982638697,-500.0,0.00013693,2]
[399988742,1766982638707,-500.0,0.00013693,2]
[399988743,1766982638718,-500.0,0.00013693,2]
[399988744,1766982638730,-500.0,0.00013693,2]
[399988745,1766982638740,-60.03958903,0.00013821,2]
[399988746,1766982638750,-983.96639663,0.00013821,2]
[399988747,1766982638763,-16.03360337,0.00013821,2]
[399988748,1766982638773,-1000.0,0.00013821,2]
[399988749,1766982638783,-1000.0,0.00013821,2]
[399988750,1766982638793,-1000.0,0.00013821,2]
[399988751,1766982638803,-1000.0,0.00013821,2]
[399988752,1766982638814,-500.0,0.00013821,2]
[399988753,1766982638823,-500.0,0.00013821,2]
[399988754,1766982638832,-1008.31856485,0.00013821,2]
[399988755,1766982638842,-300.0,0.00013972,2]
[399988756,1766982638851,-300.0,0.00013972,2]
[399988757,1766982638860,-300.0,0.00013972,2]
[399988758,1766982638870,-300.0,0.00013972,2]
[399988759,1766982638879,-300.0,0.00013972,2]
[399988760,1766982638888,-300.0,0.00013972,2]
[399988761,1766982638898,-300.0,0.00013972,2]
[399988762,1766982638908,-300.0,0.00013972,2]
[399988763,1766982638917,-300.0,0.00013972,2]
[399988764,1766982638927,-300.0,0.00013972,2]
[399988765,1766982638936,-300.0,0.00013972,2]
[399988766,1766982638946,-300.0,0.00013972,2]
[399988767,1766982638956,-300.0,0.00013972,2]
[399988768,1766982638966,-300.0,0.00013972,2]
[399988769,1766982638976,-300.0,0.00013972,2]
[399988770,1766982638986,-574.94416901,0.00014247,2]
[399988771,1766982638996,-600.0,0.0001425,2]
[399988772,1766982639006,-504.15360583,0.00014368,2]
[399988773,1766982639016,-510.2929067,0.00014368,2]
[399988774,1766982639026,-177.0,0.00015272,2]
[399988775,1766982639037,-3702.60495401,0.00015276,2]
[399988776,1766982639046,-720.0,0.00015675,2]
[399988777,1766982639057,-593.15794902,0.00015888,2]
[399988778,1766982639067,-1125.91855313,0.00016528,2]
[399988779,1766982639077,-864.0,0.00017243,2]
[399988780,1766982639086,-204.0,0.00017272,2]
[399988781,1766982639096,-321.16723234,0.00017703,2]
[399988782,1766982639106,-627.0,0.0001784,2]
[399988783,1766982639116,-2156.0,0.0001784,2]
[399988784,1766982639126,-416.0,0.0001784,2]
[399988785,1766982639136,-315.579695,0.00017984,2]
[399988786,1766982639145,-54658.26074056,0.00018383,2]
[399989234,1766982644648,-435.015,0.00018383,2]
[399989386,1766982646443,-21145.34749904,0.00018383,2]
[399989387,1766982646453,-6354.03389079,0.00018414,2]
[399989388,1766982646462,-150.0,0.00018493,2]
[399989389,1766982646471,-213.45377873,0.0001863,2]
[399989390,1766982646480,-257.44759636,0.00018868,2]
[399989391,1766982646490,-1000.0,0.00018967,2]
[399989392,1766982646499,-256.19084472,0.00019096,3]
[399989393,1766982646509,-5000.0,0.00019178,2]
[399989394,1766982646518,-193.31,0.00019193,3]
[399989395,1766982646527,-643.99632832,0.00019203,2]
[399989833,1766982696306,168.6,0.00011345,2]
[399989840,1766982895952,169.57,0.00012442,2]
[399989841,1766982896555,193.79,0.00012903,2]
[399989843,1766982964931,163.92,0.00012437,2]
[399989844,1766982965293,187.34,0.00012898,2]
[399989850,1766983033000,185.35,0.0001145,2]
[399989851,1766983033410,222.42,0.00011908,2]
[399989852,1766983033847,259.49,0.00012366,2]
[399989853,1766983034256,296.56,0.00012824,2]
[399989857,1766983103220,171.73,0.00011894,2]
[399989858,1766983103734,200.35,0.00012352,2]
[399989859,1766983104143,228.97,0.00012809,2]
[399989866,1766983172317,184.33,0.00011545,2]
[399989867,1766983172737,221.2,0.00012007,2]
[399989868,1766983173149,258.07,0.00012469,2]
[399989869,1766983173544,294.93,0.00012931,2]
[399989876,1766983243476,172.67,0.00012365,2]
[399989877,1766983243950,197.34,0.00012823,2]
[399989879,1766983312864,159.66,0.00011991,2]
[399989880,1766983313435,179.62,0.00012419,2]
[399989881,1766983313659,178.83849447,0.00012848,2]
[399989983,1766983838617,-610.0,0.00013392,2]
[399989984,1766983838627,-300.0,0.00013688,2]
[399989985,1766983838637,-507.16661,0.00013699,2]
[399989986,1766983838646,-500.65272735,0.00013819,2]
[399989987,1766983838656,-300.0,0.00013965,2]
[399989988,1766983838666,-300.0,0.00013965,2]
[399989989,1766983838676,-300.0,0.00013965,2]
[399989990,1766983838686,-300.0,0.00013965,2]
[399989991,1766983838695,-300.0,0.00013965,2]
[399989992,1766983838704,-300.0,0.00013965,2]
[399989993,1766983838714,-300.0,0.00013965,2]
[399989994,1766983838723,-300.0,0.00013965,2]
[399989995,1766983838732,-300.0,0.00013965,2]
[399989996,1766983838742,-300.0,0.00013965,2]
[399989997,1766983838751,-300.0,0.00013965,2]
[399989998,1766983838760,-300.0,0.00013965,2]
[399989999,1766983838770,-300.0,0.00013965,2]
[399990000,1766983838779,-300.0,0.00013965,2]
[399990001,1766983838789,-300.0,0.00013965,2]
[399990002,1766983838802,-600.0,0.00013965,2]
[399990003,1766983838812,-420.0,0.00015,2]
[399990004,1766983838822,-720.0,0.00015362,2]
[399990005,1766983838832,-177.0,0.00015541,2]
[399990006,1766983838841,-200.39391121,0.00015753,2]
[399990007,1766983838851,-500.0,0.00015989,2]
[399990008,1766983838860,-500.0,0.00015989,2]
[399990009,1766983838870,-500.0,0.00015989,2]
[399990010,1766983838880,-565.53923261,0.00015989,2]
[399990011,1766983838891,-500.0,0.00015989,2]
[399990012,1766983838900,-211.32753328,0.00015989,2]
[399990013,1766983838910,-500.0,0.00015989,2]
[399990014,1766983838920,-500.0,0.00015989,2]
[399990015,1766983838933,-500.0,0.00015989,2]
[399990016,1766983838943,-500.0,0.00015989,2]
[399990017,1766983838952,-500.0,0.00015989,2]
[399990018,1766983838962,-59555.71197971,0.0001599,2]
[399990019,1766983838972,-587.0,0.00016439,2]
[399990020,1766983838982,-864.0,0.00016898,2]
[399990021,1766983838991,-500.0,0.00016898,2]
[399990022,1766983839002,-10000.0,0.00016905,2]
[399990023,1766983839012,-809479.33039093,0.00016908,2]
[399990024,1766983839021,-186.77648845,0.00016959,2]
[399990025,1766983839032,-2435.07991381,0.00017059,2]
[399990026,1766983839042,-507.31861229,0.00017172,2]
[399990027,1766983839052,-2435.07991381,0.00017459,2]
[399990028,1766983839061,-204.0,0.00017541,2]
[399990029,1766983839071,-2435.07991381,0.000177,2]
[399990030,1766983839083,-2435.07991381,0.0001783,2]
[399990031,1766983839093,-823.0,0.00018015,2]
[399990032,1766983839102,-1364.0,0.00018197,2]
[399990033,1766983839111,-627.0,0.00018197,2]
[399990034,1766983839121,-2156.0,0.00018197,2]
[399990035,1766983839130,-151.529,0.00018197,2]
[399990036,1766983839144,-2435.07991381,0.00018349,2]
[399990037,1766983839154,-151.31266844,0.00018356,2]
[399990038,1766983839164,-2435.07991381,0.0001838,2]
[399990039,1766983839174,-1765.0029,0.00018433,2]
[399990040,1766983839184,-176.0,0.00018548,3]